fUST/lending_fUST_20250725
["ID","MTS","AMOUNT","RATE_DAILY","PERIOD"]
[374618181,1753380647737,-1124.59,0.0002155,2]
[374618182,1753380647745,-460.0,0.00021551,2]
[374618183,1753380647755,-460.0,0.00021551,2]
[374618184,1753380647764,-899.35,0.00021551,2]
[374618185,1753380647773,-460.0,0.00021551,2]
[374618186,1753380647782,-334.31279057,0.00021551,2]
[374618187,1753380647791,-530.46,0.00021551,2]
[374618188,1753380647800,-460.0,0.00021551,2]
[374618189,1753380647809,-460.0,0.00021551,2]
[374618190,1753380647818,-460.0,0.00021551,2]
[374618191,1753380647827,-3352.39,0.00021551,2]
[374618192,1753380647836,-610.16,0.00021551,2]
[374618193,1753380647845,-460.0,0.00021551,2]
[374618194,1753380647854,-699.84,0.00021551,2]
[374618195,1753380647863,-460.0,0.00021551,2]
[374618196,1753380647872,-1768.51,0.00021552,2]
[374618197,1753380647881,-460.0,0.00021552,2]
[374618198,1753380647890,-460.0,0.00021552,2]
[374618199,1753380647899,-460.0,0.00021552,2]
[374618200,1753380647908,-460.0,0.00021552,2]
[374618201,1753380647917,-325.65,0.00021552,2]
[374618202,1753380647925,-1096.7,0.00021552,2]
[374618203,1753380647934,-460.0,0.00021552,2]
[374618204,1753380647943,-500.24,0.00021552,2]
[374618205,1753380647952,-460.0,0.00021552,2]
[374618206,1753380647962,-875.4,0.00021552,2]
[374618207,1753380647971,-460.0,0.00021552,2]
[374618208,1753380647981,-1782.41,0.00021552,2]
[374618209,1753380647990,-1045.93,0.00021552,2]
[374618210,1753380648000,-607.47,0.00021552,2]
[374618211,1753380648010,-1690.92,0.00021552,2]
[374618212,1753380648019,-460.0,0.00021552,2]
[374618213,1753380648028,-715.98,0.00021552,2]
[374618214,1753380648038,-460.0,0.00021552,2]
[374618215,1753380648048,-460.0,0.00021552,2]
[374618216,1753380648057,-460.0,0.00021552,2]
[374618217,1753380648068,-155.0,0.00021596,2]
[374618218,1753380648077,-500.01914078,0.00021646,2]
[374618219,1753380648176,-551.68715773,0.00021646,2]
[374618220,1753380648186,-500.0,0.0002165,2]
[374618221,1753380648195,-500.0,0.0002165,2]
[374618222,1753380648205,-649.91416204,0.0002165,2]
[374618223,1753380648215,-500.0,0.0002165,2]
[374618224,1753380648224,-500.0,0.0002165,2]
[374618225,1753380648233,-1254.92,0.00021652,2]
[374618226,1753380648242,-576.27187642,0.00021685,2]
[374618227,1753380648251,-171.57040078,0.00021725,2]
[374618228,1753380648261,-500.0,0.00021743,2]
[374618229,1753380648270,-151.0,0.000218,4]
[374618230,1753380648280,-1072.34,0.00021824,2]
[374618231,1753380648289,-2981.25,0.00021824,2]
[374618232,1753380648299,-1693.51,0.00021824,2]
[374618233,1753380648309,-870.03,0.00021824,2]
[374618234,1753380648318,-460.0,0.00021824,2]
[374618235,1753380648328,-1124.59,0.00021824,2]
[374618236,1753380648338,-460.0,0.00021825,2]
[374618237,1753380648347,-558.43932771,0.00021825,2]
[374618238,1753380648356,-899.35,0.00021825,2]
[374618239,1753380648365,-460.0,0.00021825,2]
[374618240,1753380648374,-530.46,0.00021825,2]
[374618241,1753380648384,-460.0,0.00021825,2]
[374618242,1753380648393,-220.64,0.00021825,2]
[374618243,1753380648407,-460.0,0.00021825,2]
[374618244,1753380648416,-3352.39,0.00021825,2]
[374618245,1753380648426,-610.16,0.00021825,2]
[374618246,1753380648435,-699.84,0.00021825,2]
[374618247,1753380648445,-460.0,0.00021825,2]
[374618248,1753380648456,-460.0,0.00021825,2]
[374618249,1753380648465,-1768.51,0.00021826,2]
[374618250,1753380648475,-460.0,0.00021826,2]
[374618251,1753380648484,-460.0,0.00021826,2]
[374618252,1753380648493,-460.0,0.00021826,2]
[374618253,1753380648502,-460.0,0.00021826,2]
[374618254,1753380648512,-1096.7,0.00021826,2]
[374618255,1753380648521,-460.0,0.00021826,2]
[374618256,1753380648530,-500.24,0.00021826,2]
[374618257,1753380648539,-460.0,0.00021826,2]
[374618258,1753380648548,-875.4,0.00021826,2]
[374618259,1753380648559,-460.0,0.00021826,2]
[374618260,1753380648568,-1782.41,0.00021826,2]
[374618261,1753380648580,-1045.93,0.00021826,2]
[374618262,1753380648589,-607.47,0.00021826,2]
[374618263,1753380648599,-1690.92,0.00021826,2]
[374618264,1753380648607,-460.0,0.00021826,2]
[374618265,1753380648617,-715.98,0.00021826,2]
[374618266,1753380648627,-460.0,0.00021826,2]
[374618267,1753380648636,-460.0,0.00021826,2]
[374618268,1753380648645,-460.0,0.00021826,2]
[374618269,1753380648655,-725.31371795,0.00021848,2]
[374618270,1753380648664,-392.78714662,0.00021848,2]
[374618271,1753380648673,-500.0,0.00021908,2]
[374618272,1753380648682,-500.0,0.00021908,2]
[374618273,1753380648691,-1254.92,0.00021926,2]
[374618274,1753380648700,-500.0,0.00021948,2]
[374618275,1753380648713,-1000.0,0.0002196,2]
[374618276,1753380648723,-1000.0,0.0002196,2]
[374618277,1753380648735,-1087.59,0.00022,7]
[374618278,1753380648745,-3554.4,0.00022,7]
[374618279,1753380648754,-1692.7,0.00022,7]
[374618280,1753380648764,-28926.21,0.00022,2]
[374618281,1753380648773,-166.67,0.00022,2]
[374618282,1753380648783,-360.0,0.0002205,2]
[374618283,1753380648792,-25000.0,0.00022066,2]
[374618284,1753380648802,-1072.34,0.00022098,2]
[374618285,1753380648812,-2981.25,0.00022098,2]
[374618286,1753380648822,-1693.51,0.00022098,2]
[374618287,1753380648832,-870.03,0.00022098,2]
[374618288,1753380648841,-460.0,0.00022098,2]
[374618289,1753380648851,-1124.59,0.00022098,2]
[374618290,1753380648862,-899.35,0.00022099,2]
[374618291,1753380648871,-460.0,0.00022099,2]
[374618292,1753380648881,-530.46,0.00022099,2]
[374618293,1753380648891,-460.0,0.00022099,2]
[374618294,1753380648901,-460.0,0.00022099,2]
[374618295,1753380648910,-3352.39,0.00022099,2]
[374618296,1753380648920,-610.16,0.00022099,2]
[374618297,1753380648930,-460.0,0.00022099,2]
[374618298,1753380648939,-699.84,0.00022099,2]
[374618299,1753380648949,-460.0,0.00022099,2]
[374618300,1753380648960,-1768.51,0.000221,2]
[374618301,1753380648970,-460.0,0.000221,2]
[374618302,1753380648979,-460.0,0.000221,2]
[374618303,1753380648989,-460.0,0.000221,2]
[374618304,1753380648999,-460.0,0.000221,2]
[374618305,1753380649009,-1096.7,0.000221,2]
[374618306,1753380649018,-460.0,0.000221,2]
[374618307,1753380649028,-500.24,0.000221,2]
[374618308,1753380649037,-460.0,0.000221,2]
[374618309,1753380649046,-875.4,0.000221,2]
[374618310,1753380649056,-460.0,0.000221,2]
[374618311,1753380649066,-1782.41,0.000221,2]
[374618312,1753380649077,-1045.93,0.000221,2]
[374618313,1753380649087,-607.47,0.000221,2]
[374618314,1753380649099,-1690.92,0.000221,2]
[374618315,1753380649115,-460.0,0.000221,2]
[374618316,1753380649130,-715.98,0.000221,2]
[374618317,1753380649144,-460.0,0.000221,2]
[374618318,1753380649157,-460.0,0.000221,2]
[374618319,1753380649170,-460.0,0.000221,2]
[374618320,1753380649185,-151.0,0.00022101,7]
[374618321,1753380649199,-151.0,0.00022101,7]
[374618322,1753380649214,-151.0,0.00022101,7]
[374618323,1753380649228,-151.0,0.00022101,7]
[374618324,1753380649243,-186.976971,0.00022101,7]
[374618325,1753380649257,-186.976971,0.00022101,7]
[374618326,1753380649271,-473.158341,0.00022101,7]
[374618327,1753380649284,-151.387848,0.00022101,7]
[374618328,1753380649298,-473.158341,0.00022101,7]
[374618329,1753380649312,-167.805232,0.00022101,7]
[374618330,1753380649326,-167.805232,0.00022101,7]
[374618331,1753380649338,-270.105453,0.00022101,7]
[374618332,1753380649353,-270.105453,0.00022101,7]
[374618333,1753380649367,-849.243154,0.00022101,7]
[374618334,1753380649380,-849.243154,0.00022101,7]
[374618335,1753380649394,-2155.0,0.0002215,2]
[374618336,1753380649412,-1064.97719508,0.00022158,2]
[374618337,1753380649425,-547.08361476,0.00022194,2]
[374618338,1753380649440,-1000.0,0.00022198,2]
[374618339,1753380649456,-1000.0,0.00022198,2]
[374618340,1753380649468,-1000.0,0.00022198,2]
[374618341,1753380649480,-151.0,0.000222,10]
[374618342,1753380649492,-1254.92,0.000222,2]
[374618343,1753380649508,-265.31149077,0.000222,2]
[374618344,1753380649521,-151.0,0.000222,7]
[374618345,1753380649532,-246.557261,0.000222,7]
[374618346,1753380649544,-246.557261,0.000222,7]
[374618347,1753380649557,-151.0,0.000222,7]
[374618348,1753380649569,-151.0,0.000222,7]
[374618349,1753380649580,-151.0,0.000222,7]
[374618350,1753380649591,-151.0,0.000222,7]
[374618351,1753380649603,-183.586108,0.000222,7]
[374618352,1753380649615,-183.586108,0.000222,7]
[374618353,1753380649626,-4370.92239866,0.00022205,2]
[374618354,1753380649639,-1347.0,0.00022329,2]
[374618355,1753380649652,-223.0315306,0.00022339,2]
[374618356,1753380649664,-214.7213231,0.0002235,7]
[374618357,1753380649676,-12624.810388,0.0002235,7]
[374618358,1753380649689,-1072.34,0.00022372,2]
[374618359,1753380649700,-2981.25,0.00022372,2]
[374618360,1753380649713,-1693.51,0.00022372,2]
[374618361,1753380649725,-870.03,0.00022372,2]
[374618362,1753380649736,-236.97,0.00022372,2]
[374618363,1753380649748,-1124.59,0.00022372,2]
[374618364,1753380649759,-151.0,0.00022373,7]
[374618365,1753380649770,-151.0,0.00022373,7]
[374618366,1753380649782,-151.181492,0.00022373,7]
[374618367,1753380649794,-899.35,0.00022373,2]
[374618368,1753380649805,-460.0,0.00022373,2]
[374618369,1753380649817,-530.46,0.00022373,2]
[374618370,1753380649829,-460.0,0.00022373,2]
[374618371,1753380649840,-460.0,0.00022373,2]
[374618372,1753380649851,-3352.39,0.00022373,2]
[374618373,1753380649863,-610.16,0.00022373,2]
[374618374,1753380649875,-460.0,0.00022373,2]
[374618375,1753380649886,-699.84,0.00022373,2]
[374618376,1753380649898,-460.0,0.00022373,2]
[374618377,1753380649909,-1768.51,0.00022374,2]
[374618378,1753380649921,-460.0,0.00022374,2]
[374618379,1753380649932,-460.0,0.00022374,2]
[374618380,1753380649943,-230.96887769,0.00022374,2]
[374618381,1753380649955,-460.0,0.00022374,2]
[374618382,1753380649968,-1096.7,0.00022374,2]
[374618383,1753380649979,-460.0,0.00022374,2]
[374618384,1753380649991,-500.24,0.00022374,2]
[374618385,1753380650000,-460.0,0.00022374,2]
[374618386,1753380650012,-875.4,0.00022374,2]
[374618387,1753380650022,-460.0,0.00022374,2]
[374618388,1753380650031,-1782.41,0.00022374,2]
[374618389,1753380650040,-1045.93,0.00022374,2]
[374618390,1753380650050,-607.47,0.00022374,2]
[374618391,1753380650060,-1690.92,0.00022374,2]
[374618392,1753380650069,-460.0,0.00022374,2]
[374618393,1753380650079,-715.98,0.00022374,2]
[374618394,1753380650088,-151.0,0.00022374,7]
[374618395,1753380650098,-460.0,0.00022374,2]
[374618396,1753380650107,-151.0,0.00022374,7]
[374618397,1753380650117,-460.0,0.00022374,2]
[374618398,1753380650127,-460.0,0.00022374,2]
[374618399,1753380650137,-151.0,0.00022375,7]
[374618400,1753380650146,-151.0,0.00022375,7]
[374618401,1753380650155,-151.0,0.00022375,7]
[374618402,1753380650165,-151.0,0.00022375,7]
[374618403,1753380650174,-321.18829,0.00022375,7]
[374618404,1753380650183,-321.18829,0.00022375,7]
[374618405,1753380650193,-151.0,0.00022375,7]
[374618406,1753380650321,-151.0,0.00022375,7]
[374618407,1753380650378,-151.0,0.00022375,7]
[374618408,1753380650390,-151.0,0.00022375,7]
[374618409,1753380650405,-151.0,0.00022375,7]
[374618410,1753380650415,-476.79463412,0.0002238,7]
[374618411,1753380650425,-160.0,0.0002238,7]
[374618412,1753380650434,-1000.0,0.00022456,2]
[374618413,1753380650444,-1619.23,0.00022465,2]
[374618414,1753380650453,-151.0,0.00022473,7]
[374618415,1753380650464,-151.0,0.00022473,7]
[374618416,1753380650477,-1254.92,0.00022474,2]
[374618417,1753380650487,-166.67,0.000225,2]
[374618418,1753380650497,-613.72738664,0.00022508,2]
[374618419,1753380650507,-209.42685915,0.00022508,2]
[374618420,1753380650516,-1347.0,0.0002255,2]
[374618421,1753380650526,-460.0,0.00022598,2]
[374618422,1753380650535,-151.0,0.000226,10]
[374618423,1753380650544,-1347.0,0.00022609,2]
[374618424,1753380650554,-25000.0,0.00022614,2]
[374618425,1753380650563,-1072.34,0.00022646,2]
[374618426,1753380650572,-2981.25,0.00022646,2]
[374618427,1753380650582,-1693.51,0.00022646,2]
[374618428,1753380650591,-870.03,0.00022646,2]
[374618429,1753380650600,-1124.59,0.00022646,2]
[374618430,1753380650610,-899.35,0.00022647,2]
[374618431,1753380650619,-460.0,0.00022647,2]
[374618432,1753380650628,-530.46,0.00022647,2]
[374618433,1753380650638,-460.0,0.00022647,2]
[374618434,1753380650647,-460.0,0.00022647,2]
[374618435,1753380650657,-3352.39,0.00022647,2]
[374618436,1753380650667,-610.16,0.00022647,2]
[374618437,1753380650676,-460.0,0.00022647,2]
[374618438,1753380650686,-699.84,0.00022647,2]
[374618439,1753380650696,-460.0,0.00022647,2]
[374618440,1753380650706,-1768.51,0.00022648,2]
[374618441,1753380650717,-460.0,0.00022648,2]
[374618442,1753380650726,-561.66,0.00022648,2]
[374618443,1753380650736,-460.0,0.00022648,2]
[374618444,1753380650745,-1096.7,0.00022648,2]
[374618445,1753380650754,-460.0,0.00022648,2]
[374618446,1753380650764,-500.24,0.00022648,2]
[374618447,1753380650773,-460.0,0.00022648,2]
[374618448,1753380650783,-875.4,0.00022648,2]
[374618449,1753380650792,-371.82241835,0.00022648,2]
[374618450,1753380650801,-1782.41,0.00022648,2]
[374618451,1753380650810,-1045.93,0.00022648,2]
[374618452,1753380650819,-607.47,0.00022648,2]
[374618453,1753380650828,-1690.92,0.00022648,2]
[374618454,1753380650838,-460.0,0.00022648,2]
[374618455,1753380650847,-715.98,0.00022648,2]
[374618456,1753380650857,-460.0,0.00022648,2]
[374618457,1753380650867,-460.0,0.00022648,2]
[374618458,1753380650876,-440.6947472,0.00022648,2]
[374618459,1753380650886,-1347.0,0.00022745,2]
[374618460,1753380650896,-1500.0,0.00022746,2]
[374618461,1753380650906,-500.0,0.00022746,2]
[374618462,1753380650915,-1254.92,0.00022748,2]
[374618463,1753380650925,-151.0,0.00022796,7]
[374618464,1753380650935,-151.0,0.00022796,7]
[374618465,1753380650945,-151.0,0.00022796,7]
[374618466,1753380650955,-1347.0,0.00022847,2]
[374618467,1753380650966,-1072.34,0.0002292,2]
[374618468,1753380650976,-2981.25,0.0002292,2]
[374618469,1753380650985,-1693.51,0.0002292,2]
[374618470,1753380650995,-870.03,0.0002292,2]
[374618471,1753380651004,-1124.59,0.0002292,2]
[374618472,1753380651013,-899.35,0.00022921,2]
[374618473,1753380651022,-460.0,0.00022921,2]
[374618474,1753380651031,-530.46,0.00022921,2]
[374618475,1753380651040,-395.72944575,0.00022921,2]
[374618476,1753380651049,-460.0,0.00022921,2]
[374618477,1753380651058,-3352.39,0.00022921,2]
[374618478,1753380651067,-610.16,0.00022921,2]
[374618479,1753380651077,-460.0,0.00022921,2]
[374618480,1753380651086,-699.84,0.00022921,2]
[374618481,1753380651095,-460.0,0.00022921,2]
[374618482,1753380651104,-1768.51,0.00022922,2]
[374618483,1753380651113,-460.0,0.00022922,2]
[374618484,1753380651122,-460.0,0.00022922,2]
[374618485,1753380651131,-1096.7,0.00022922,2]
[374618486,1753380651140,-460.0,0.00022922,2]
[374618487,1753380651149,-500.24,0.00022922,2]
[374618488,1753380651159,-460.0,0.00022922,2]
[374618489,1753380651168,-875.4,0.00022922,2]
[374618490,1753380651178,-1782.41,0.00022922,2]
[374618491,1753380651187,-1045.93,0.00022922,2]
[374618492,1753380651197,-607.47,0.00022922,2]
[374618493,1753380651207,-1690.92,0.00022922,2]
[374618494,1753380651216,-460.0,0.00022922,2]
[374618495,1753380651226,-715.98,0.00022922,2]
[374618496,1753380651235,-460.0,0.00022922,2]
[374618497,1753380651244,-460.0,0.00022922,2]
[374618498,1753380651254,-500.0,0.00022973,2]
[374618499,1753380651263,-500.0,0.00022973,2]
[374618500,1753380651273,-500.0,0.00022973,2]
[374618501,1753380651283,-1347.0,0.00022976,2]
[374618502,1753380651293,-3000.0,0.00023,2]
[374618503,1753380651303,-1692.7,0.00023,7]
[374618504,1753380651312,-28926.21,0.00023,2]
[374618505,1753380651322,-76562.8406976,0.00023,2]
[374618506,1753380651333,-1064.97719508,0.00023,2]
[374618507,1753380651346,-151.0,0.00023,7]
[374618508,1753380651356,-153.346447,0.00023,7]
[374618509,1753380651365,-151.0,0.00023,7]
[374618510,1753380651375,-151.0,0.00023,7]
[374618511,1753380651384,-160.0,0.00023,2]
[374618512,1753380651394,-151.0,0.00023,7]
[374618513,1753380651407,-151.0,0.00023,7]
[374618514,1753380651416,-151.0,0.00023,7]
[374618515,1753380651426,-151.0,0.00023,7]
[374618516,1753380651436,-183.586108,0.00023,7]
[374618517,1753380651446,-183.586108,0.00023,7]
[374618518,1753380651456,-151.708702,0.00023,7]
[374618519,1753380651467,-3000.0,0.0002301,2]
[374618520,1753380651477,-151.0,0.0002301,7]
[374618521,1753380651487,-151.0,0.0002301,7]
[374618522,1753380651497,-151.0,0.0002301,7]
[374618523,1753380651507,-331.746401,0.0002301,7]
[374618524,1753380651516,-331.746401,0.0002301,7]
[374618525,1753380651525,-151.0,0.0002301,7]
[374618526,1753380651533,-151.0,0.0002301,7]
[374618527,1753380651543,-151.0,0.0002301,7]
[374618528,1753380651552,-151.0,0.0002301,7]
[374618529,1753380651561,-186.976971,0.0002301,7]
[374618530,1753380651570,-186.976971,0.0002301,7]
[374618531,1753380651579,-473.158341,0.0002301,7]
[374618532,1753380651588,-473.158341,0.0002301,7]
[374618533,1753380651598,-167.805232,0.0002301,7]
[374618534,1753380651607,-167.805232,0.0002301,7]
[374618535,1753380651617,-270.105453,0.0002301,7]
[374618536,1753380651626,-270.105453,0.0002301,7]
[374618537,1753380651635,-166.67,0.00023012,2]
[374618538,1753380651645,-3000.0,0.0002302,2]
[374618539,1753380651654,-229.975485,0.0002302,7]
[374618540,1753380651663,-229.975485,0.0002302,7]
[374618541,1753380651672,-151.0,0.0002302,7]
[374618542,1753380651681,-151.0,0.0002302,7]
[374618543,1753380651691,-167.069805,0.0002302,7]
[374618544,1753380651701,-151.0,0.0002302,7]
[374618545,1753380651713,-849.243154,0.0002302,7]
[374618546,1753380651722,-849.243154,0.0002302,7]
[374618547,1753380651731,-1254.92,0.00023022,2]
[374618548,1753380651741,-3000.0,0.0002303,2]
[374618549,1753380651750,-3000.0,0.0002304,2]
[374618550,1753380651759,-3000.0,0.0002305,2]
[374618551,1753380651768,-3000.0,0.0002306,2]
[374618552,1753380651778,-3000.0,0.0002307,2]
[374618553,1753380651787,-3000.0,0.0002308,2]
[374618554,1753380651797,-151.0,0.0002308,7]
[374618555,1753380651806,-246.557261,0.0002308,7]
[374618556,1753380651815,-246.557261,0.0002308,7]
[374618557,1753380651824,-3000.0,0.0002309,2]
[374618558,1753380651833,-3000.0,0.000231,2]
[374618559,1753380651843,-151.0,0.000231,8]
[374618560,1753380651852,-151.0,0.0002311,7]
[374618561,1753380651861,-151.0,0.0002311,7]
[374618562,1753380651871,-3000.0,0.0002311,2]
[374618563,1753380651880,-151.0,0.0002311,7]
[374618564,1753380651890,-151.0,0.0002311,7]
[374618565,1753380651899,-151.0,0.0002311,7]
[374618566,1753380651908,-321.18829,0.0002311,7]
[374618567,1753380651917,-321.18829,0.0002311,7]
[374618568,1753380651926,-151.0,0.0002311,7]
[374618569,1753380651935,-151.0,0.0002311,7]
[374618570,1753380651944,-151.0,0.0002311,7]
[374618571,1753380651954,-3000.0,0.0002312,2]
[374618572,1753380651964,-3000.0,0.0002313,2]
[374618573,1753380651974,-3000.0,0.0002314,2]
[374618574,1753380651983,-151.0,0.0002314,7]
[374618575,1753380651992,-151.0,0.0002314,7]
[374618576,1753380652001,-151.0,0.0002314,7]
[374618577,1753380652011,-151.0,0.0002314,7]
[374618578,1753380652020,-151.0,0.0002314,7]
[374618579,1753380652030,-151.0,0.0002314,7]
[374618580,1753380652040,-151.0,0.0002314,7]
[374618581,1753380652049,-165.1606,0.0002314,7]
[374618582,1753380652059,-165.1606,0.0002314,7]
[374618583,1753380652069,-418.485009,0.0002314,7]
[374618584,1753380652079,-337.09095,0.0002314,7]
[374618585,1753380652088,-337.09095,0.0002314,7]
[374618586,1753380652098,-1961.803154,0.0002314,7]
[374618587,1753380652108,-1961.803154,0.0002314,7]
[374618588,1753380652118,-560.0,0.00023146,2]
[374618589,1753380652127,-3000.0,0.0002315,2]
[374618590,1753380652136,-3000.0,0.0002316,2]
[374618591,1753380652145,-25000.0,0.00023162,2]
[374618592,1753380652155,-3000.0,0.0002317,2]
[374618593,1753380652165,-500.69980759,0.00023173,2]
[374618594,1753380652175,-500.35759823,0.00023173,2]
[374618595,1753380652185,-160.11934557,0.00023173,2]
[374618596,1753380652194,-500.0,0.00023173,2]
[374618597,1753380652204,-3000.0,0.0002318,2]
[374618598,1753380652216,-3000.0,0.0002319,2]
[374618599,1753380652226,-1072.34,0.00023194,2]
[374618600,1753380652236,-2981.25,0.00023194,2]
[374618601,1753380652246,-870.03,0.00023194,2]
[374618602,1753380652256,-1693.51,0.00023194,2]
[374618603,1753380652266,-1124.59,0.00023194,2]
[374618604,1753380652276,-899.35,0.00023195,2]
[374618605,1753380652286,-460.0,0.00023195,2]
[374618606,1753380652296,-530.46,0.00023195,2]
[374618607,1753380652306,-460.0,0.00023195,2]
[374618608,1753380652315,-3352.39,0.00023195,2]
[374618609,1753380652325,-610.16,0.00023195,2]
[374618610,1753380652335,-460.0,0.00023195,2]
[374618611,1753380652345,-699.84,0.00023195,2]
[374618612,1753380652354,-460.0,0.00023195,2]
[374618613,1753380652364,-1768.51,0.00023196,2]
[374618614,1753380652373,-460.0,0.00023196,2]
[374618615,1753380652383,-460.0,0.00023196,2]
[374618616,1753380652392,-1096.7,0.00023196,2]
[374618617,1753380652406,-460.0,0.00023196,2]
[374618618,1753380652415,-500.24,0.00023196,2]
[374618619,1753380652424,-460.0,0.00023196,2]
[374618620,1753380652434,-875.4,0.00023196,2]
[374618621,1753380652444,-1782.41,0.00023196,2]
[374618622,1753380652454,-1045.93,0.00023196,2]
[374618623,1753380652464,-607.47,0.00023196,2]
[374618624,1753380652474,-1136.775414,0.00023196,2]
[374618625,1753380652758,-460.0,0.00019632,2]
[374618626,1753380652768,-460.0,0.00019633,2]
[374618627,1753380652778,-467.63122922,0.00019906,2]
[374618628,1753380652788,-1570.19350016,0.000209,4]
[374618629,1753380652798,-151.0,0.0002097,2]
[374618630,1753380652808,-151.0,0.0002097,2]
[374618631,1753380652818,-151.0,0.0002097,2]
[374618632,1753380652827,-151.0,0.0002097,2]
[374618633,1753380652836,-27.45124979,0.00021072,4]
[374618634,1753380652874,-766.43464595,0.00021072,4]
[374618635,1753380750609,166.06389,0.00013699,2]
[374618637,1753380857573,10000.0,0.0001877,2]
[374618638,1753380911010,2425.0,0.0002602,120]
[374618639,1753381186655,24900.0,0.00018633,2]
[374618644,1753381639343,-300.0,0.00019627,2]
[374618645,1753381639366,-396.63693037,0.00019628,2]
[374618647,1753381642091,-803.36306963,0.00019628,2]
[374618648,1753381642112,-2447.3140536,0.00019628,2]
[374618649,1753381654111,-804.61083731,0.00019628,2]
[374618654,1753381720774,301.999999,0.0002,120]
[374618657,1753381751673,192.25184438,0.0001941,2]
[374618737,1753381838116,-1200.0,0.00019626,2]
[374618739,1753381838126,-300.0,0.00019626,2]
[374618741,1753381838135,-460.0,0.00019627,2]
[374618743,1753381838145,-460.0,0.00019627,2]
[374618745,1753381838155,-2643.77,0.00019627,2]
[374618747,1753381838164,-460.0,0.00019627,2]
[374618749,1753381838174,-460.0,0.00019627,2]
[374618751,1753381838184,-796.07,0.00019627,2]
[374618753,1753381838193,-500.0,0.00019627,2]
[374618754,1753381838203,-500.0,0.00019627,2]
[374618755,1753381838212,-463.47894548,0.00019627,2]
[374618756,1753381838222,-500.0,0.00019627,2]
[374618757,1753381838234,-500.0,0.00019627,2]
[374618758,1753381838244,-500.0,0.00019627,2]
[374618759,1753381838253,-500.0,0.00019627,2]
[374618760,1753381838263,-645.75024908,0.00019627,2]
[374618761,1753381838272,-500.0,0.00019627,2]
[374618762,1753381838282,-500.0,0.00019627,2]
[374618763,1753381838292,-500.0,0.00019627,2]
[374618764,1753381838301,-500.0,0.00019627,2]
[374618765,1753381838311,-11490.5724923,0.00019628,2]
[374618766,1753381838320,-460.0,0.00019628,2]
[374618767,1753381838330,-460.0,0.00019628,2]
[374618768,1753381838340,-460.0,0.00019628,2]
[374618769,1753381838349,-460.0,0.00019628,2]
[374618770,1753381838359,-1006.4,0.00019628,2]
[374618771,1753381838368,-691.44603946,0.00019628,2]
[374618772,1753381838378,-460.0,0.00019628,2]
[374618773,1753381838388,-460.0,0.00019628,2]
[374618774,1753381838398,-460.0,0.00019628,2]
[374618775,1753381838408,-1560.18,0.00019628,2]
[374618776,1753381838419,-460.0,0.00019628,2]
[374618777,1753381838428,-460.0,0.00019628,2]
[374618778,1753381838440,-460.0,0.00019628,2]
[374618779,1753381838452,-460.0,0.00019628,2]